[Event "Titled Tuesday Blitz November 15 Early 2022"]
[White "Pichot, Alan"]
[Black "Terry, Renato"]
[WhiteFideId "110973"]
[BlackFideId "3803457"]
[WhiteElo "2560"]
[BlackElo "2577"]
[Result "1/2-1/2"]
[Round "07"]
[TimeControl "180+1"]
[Date "2022.11.15"]
[WhiteClock "0:00:06"]
[BlackClock "0:00:18"]

1. Nf3 {[%clk 0:03:00]}  d5 {[%clk 0:02:58]} 2. g3 {[%clk 0:03:00]}  Nf6 {[%clk 0:02:58]} 3. Bg2 {[%clk 0:03:00]}  c6 {[%clk 0:02:59]} 4. O-O {[%clk 0:03:00]}  Bg4 {[%clk 0:03:00]} 5. d3 {[%clk 0:02:59]}  Nbd7 {[%clk 0:02:59]} 6. Nbd2 {[%clk 0:02:59]}  e5 {[%clk 0:02:59]} 7. h3 {[%clk 0:03:00]}  Bh5 {[%clk 0:02:58]} 8. e4 {[%clk 0:03:00]}  dxe4 {[%clk 0:02:55]} 9. dxe4 {[%clk 0:03:00]}  Bc5 {[%clk 0:02:53]} 10. Qe1 {[%clk 0:03:00]}  O-O {[%clk 0:02:52]} 11. a4 {[%clk 0:02:59]}  Re8 {[%clk 0:02:50]} 12. Nb3 {[%clk 0:02:59]}  Bf8 {[%clk 0:02:49]} 13. Bd2 {[%clk 0:02:55]}  Nc5 {[%clk 0:02:38]} 14. Nxc5 {[%clk 0:02:53]}  Bxc5 {[%clk 0:02:39]} 15. Bc3 {[%clk 0:02:53]}  Qc7 {[%clk 0:02:37]} 16. Nh4 {[%clk 0:02:37]}  Rad8 {[%clk 0:02:35]} 17. Nf5 {[%clk 0:02:37]}  Rd7 {[%clk 0:02:24]} 18. b4 {[%clk 0:02:18]}  Bd4 {[%clk 0:02:17]} 19. Ra3 {[%clk 0:01:16]}  Bg6 {[%clk 0:01:41]} 20. Nh4 {[%clk 0:01:14]}  Bxc3 {[%clk 0:01:35]} 21. Rxc3 {[%clk 0:01:14]}  Red8 {[%clk 0:01:29]} 22. Nxg6 {[%clk 0:01:10]}  hxg6 {[%clk 0:01:29]} 23. b5 {[%clk 0:01:03]}  c5 {[%clk 0:01:28]} 24. Rc4 {[%clk 0:00:54]}  Rd4 {[%clk 0:01:21]} 25. Qe2 {[%clk 0:00:54]}  b6 {[%clk 0:01:18]} 26. Ra1 {[%clk 0:00:50]}  Rd2 {[%clk 0:01:11]} 27. Qe3 {[%clk 0:00:49]}  R8d6 {[%clk 0:01:05]} 28. a5 {[%clk 0:00:47]}  Rd1+ {[%clk 0:00:58]} 29. Rxd1 {[%clk 0:00:46]}  Rxd1+ {[%clk 0:00:59]} 30. Kh2 {[%clk 0:00:47]}  Qd7 {[%clk 0:01:00]} 31. axb6 {[%clk 0:00:47]}  axb6 {[%clk 0:01:01]} 32. Ra4 {[%clk 0:00:30]}  Qxb5 {[%clk 0:00:55]} 33. Ra8+ {[%clk 0:00:30]}  Ne8 {[%clk 0:00:45]} 34. Qg5 {[%clk 0:00:23]}  Qc6 {[%clk 0:00:45]} 35. Rb8 {[%clk 0:00:20]}  Qe6 {[%clk 0:00:33]} 36. h4 {[%clk 0:00:19]}  Kf8 {[%clk 0:00:34]} 37. Bh3 {[%clk 0:00:18]}  Qe7 {[%clk 0:00:34]} 38. Rxb6 {[%clk 0:00:11]}  Qxg5 {[%clk 0:00:32]} 39. hxg5 {[%clk 0:00:12]}  Nd6 {[%clk 0:00:33]} 40. Bg2 {[%clk 0:00:09]}  Rd2 {[%clk 0:00:33]} 41. Rc6 {[%clk 0:00:10]}  c4 {[%clk 0:00:33]} 42. f4 {[%clk 0:00:06]}  Ke7 {[%clk 0:00:22]} 43. fxe5 {[%clk 0:00:05]}  Nxe4 {[%clk 0:00:23]} 44. Rxc4 {[%clk 0:00:06]}  Nxg5 {[%clk 0:00:23]} 45. Kg1 {[%clk 0:00:06]}  Re2 {[%clk 0:00:20]} 46. Rc5 {[%clk 0:00:05]}  Ne6 {[%clk 0:00:20]} 47. Ra5 {[%clk 0:00:03]}  Rxc2 {[%clk 0:00:19]} 48. Ra7+ {[%clk 0:00:04]}  Rc7 {[%clk 0:00:19]} 49. Ra5 {[%clk 0:00:04]}  Nc5 {[%clk 0:00:19]} 50. Bd5 {[%clk 0:00:04]}  Nd7 {[%clk 0:00:19]} 51. Bb3 {[%clk 0:00:04]}  Rc5 {[%clk 0:00:18]} 52. Ra7 {[%clk 0:00:04]}  Rxe5 {[%clk 0:00:18]} 53. Bxf7 {[%clk 0:00:04]}  g5 {[%clk 0:00:17]} 54. Bh5 {[%clk 0:00:04]}  Kd6 {[%clk 0:00:15]} 55. Bf3 {[%clk 0:00:03]}  Rb5 {[%clk 0:00:13]} 56. Kg2 {[%clk 0:00:04]}  Ne5 {[%clk 0:00:12]} 57. Be2 {[%clk 0:00:02]}  Rb2 {[%clk 0:00:12]} 58. Kf1 {[%clk 0:00:03]}  g6 {[%clk 0:00:11]} 59. Ra6+ {[%clk 0:00:03]}  Kd5 {[%clk 0:00:12]} 60. Ra5+ {[%clk 0:00:04]}  Ke4 {[%clk 0:00:12]} 61. Ra4+ {[%clk 0:00:04]}  Ke3 {[%clk 0:00:13]} 62. Ra3+ {[%clk 0:00:05]}  Kd4 {[%clk 0:00:13]} 63. Ra4+ {[%clk 0:00:05]}  Kd5 {[%clk 0:00:12]} 64. Ra5+ {[%clk 0:00:06]}  Ke4 {[%clk 0:00:13]} 65. Ra4+ {[%clk 0:00:06]}  Kf5 {[%clk 0:00:13]} 66. Ke1 {[%clk 0:00:04]}  g4 {[%clk 0:00:13]} 67. Kf1 {[%clk 0:00:03]}  Kg5 {[%clk 0:00:12]} 68. Ra5 {[%clk 0:00:03]}  Kf6 {[%clk 0:00:13]} 69. Ra6+ {[%clk 0:00:04]}  Kf5 {[%clk 0:00:13]} 70. Ra5 {[%clk 0:00:04]}  Ke4 {[%clk 0:00:12]} 71. Ra4+ {[%clk 0:00:04]}  Ke3 {[%clk 0:00:12]} 72. Ra3+ {[%clk 0:00:05]}  Kd4 {[%clk 0:00:12]} 73. Ra4+ {[%clk 0:00:05]}  Kd5 {[%clk 0:00:13]} 74. Ra5+ {[%clk 0:00:06]}  Kd6 {[%clk 0:00:12]} 75. Ra6+ {[%clk 0:00:06]}  Ke7 {[%clk 0:00:13]} 76. Ke1 {[%clk 0:00:05]}  Nf3+ {[%clk 0:00:12]} 77. Bxf3 {[%clk 0:00:04]}  gxf3 {[%clk 0:00:13]} 78. Rxg6 {[%clk 0:00:04]}  Rg2 {[%clk 0:00:12]} 79. Kf1 {[%clk 0:00:04]}  Kf7 {[%clk 0:00:12]} 80. Rg4 {[%clk 0:00:05]}  Ke6 {[%clk 0:00:13]} 81. Re4+ {[%clk 0:00:05]}  Kd5 {[%clk 0:00:13]} 82. Rg4 {[%clk 0:00:05]}  Ke5 {[%clk 0:00:13]} 83. Rg8 {[%clk 0:00:05]}  Ke4 {[%clk 0:00:13]} 84. Re8+ {[%clk 0:00:06]}  Kd3 {[%clk 0:00:13]} 85. Rd8+ {[%clk 0:00:06]}  Ke3 {[%clk 0:00:14]} 86. Re8+ {[%clk 0:00:07]}  Kd3 {[%clk 0:00:14]} 87. Rd8+ {[%clk 0:00:07]}  Ke4 {[%clk 0:00:15]} 88. Re8+ {[%clk 0:00:08]}  Kf5 {[%clk 0:00:15]} 89. Rf8+ {[%clk 0:00:08]}  Kg4 {[%clk 0:00:16]} 90. Rg8+ {[%clk 0:00:08]}  Kh3 {[%clk 0:00:16]} 91. Rh8+ {[%clk 0:00:05]}  Kxg3 {[%clk 0:00:17]} 92. Rg8+ {[%clk 0:00:06]}  Kh3 {[%clk 0:00:17]} 93. Rxg2 {[%clk 0:00:05]}  fxg2+ {[%clk 0:00:17]} 94. Kg1 {[%clk 0:00:06]}  Kg3 {[%clk 0:00:18]} 1/2-1/2


[Site "https://www.chess.com"]

[Event "Titled Tuesday Blitz November 15 Early 2022"]
[White "Przybylski, Wojciech"]
[Black "Levitan, Caleb Levi"]
[WhiteFideId "1117599"]
[BlackFideId "14332620"]
[WhiteElo "2221"]
[BlackElo "1963"]
[Result "1-0"]
[Round "07"]
[TimeControl "180+1"]
[Date "2022.11.16"]
[WhiteClock "0:00:37"]
[BlackClock "0:00:01"]

1. d4 {[%clk 0:03:00]}  Nf6 {[%clk 0:02:58]} 2. c4 {[%clk 0:03:00]}  e6 {[%clk 0:02:57]} 3. g3 {[%clk 0:03:00]}  d5 {[%clk 0:02:57]} 4. Bg2 {[%clk 0:03:00]}  dxc4 {[%clk 0:02:53]} 5. Nf3 {[%clk 0:03:00]}  Bb4+ {[%clk 0:02:52]} 6. Bd2 {[%clk 0:03:00]}  c5 {[%clk 0:02:53]} 7. O-O {[%clk 0:02:59]}  O-O {[%clk 0:02:52]} 8. Bxb4 {[%clk 0:02:56]}  cxb4 {[%clk 0:02:52]} 9. Nbd2 {[%clk 0:02:57]}  b5 {[%clk 0:02:47]} 10. Ne5 {[%clk 0:02:49]}  Nd5 {[%clk 0:02:47]} 11. e4 {[%clk 0:02:47]}  Nf6 {[%clk 0:02:41]} 12. d5 {[%clk 0:02:36]}  exd5 {[%clk 0:02:28]} 13. exd5 {[%clk 0:02:31]}  Bb7 {[%clk 0:02:26]} 14. Ne4 {[%clk 0:01:55]}  Nxd5 {[%clk 0:02:16]} 15. Nc5 {[%clk 0:01:52]}  Nc3 {[%clk 0:01:20]} 16. Qxd8 {[%clk 0:01:47]}  Ne2+ {[%clk 0:01:20]} 17. Kh1 {[%clk 0:01:44]}  Bxg2+ {[%clk 0:01:20]} 18. Kxg2 {[%clk 0:01:44]}  Rxd8 {[%clk 0:01:18]} 19. Rad1 {[%clk 0:01:43]}  Re8 {[%clk 0:01:05]} 20. Rfe1 {[%clk 0:01:38]}  f6 {[%clk 0:01:04]} 21. Ne6 {[%clk 0:01:19]}  fxe5 {[%clk 0:00:32]} 22. Nc7 {[%clk 0:01:18]}  Nc6 {[%clk 0:00:18]} 23. Rxe2 {[%clk 0:01:16]}  Rac8 {[%clk 0:00:15]} 24. Nxe8 {[%clk 0:01:15]}  Rxe8 {[%clk 0:00:15]} 25. Rd6 {[%clk 0:01:14]}  Nd4 {[%clk 0:00:15]} 26. Rd5 {[%clk 0:01:07]}  Nxe2 {[%clk 0:00:14]} 27. Kf3 {[%clk 0:01:01]}  Nd4+ {[%clk 0:00:14]} 28. Ke4 {[%clk 0:00:58]}  c3 {[%clk 0:00:14]} 29. bxc3 {[%clk 0:00:57]}  bxc3 {[%clk 0:00:14]} 30. Rc5 {[%clk 0:00:58]}  c2 {[%clk 0:00:15]} 31. f4 {[%clk 0:00:55]}  Ne6 {[%clk 0:00:07]} 32. Rxc2 {[%clk 0:00:55]}  exf4 {[%clk 0:00:07]} 33. gxf4 {[%clk 0:00:56]}  Rf8 {[%clk 0:00:06]} 34. f5 {[%clk 0:00:55]}  Ng5+ {[%clk 0:00:06]} 35. Kf4 {[%clk 0:00:54]}  h6 {[%clk 0:00:06]} 36. Rc6 {[%clk 0:00:50]}  Rf6 {[%clk 0:00:05]} 37. Rc8+ {[%clk 0:00:48]}  Kh7 {[%clk 0:00:05]} 38. Rb8 {[%clk 0:00:45]}  Rb6 {[%clk 0:00:04]} 39. Re8 {[%clk 0:00:39]}  Ra6 {[%clk 0:00:04]} 40. Re7 {[%clk 0:00:39]}  Rxa2 {[%clk 0:00:04]} 41. h4 {[%clk 0:00:38]}  Nh3+ {[%clk 0:00:03]} 42. Kg3 {[%clk 0:00:37]}  Nf2 {[%clk 0:00:03]} 43. f6 {[%clk 0:00:38]}  Ne4+ {[%clk 0:00:01]} 44. Rxe4 {[%clk 0:00:36]}  gxf6 {[%clk 0:00:02]} 45. h5 {[%clk 0:00:37]}  a5 {[%clk 0:00:01]} 46. Re7+ {[%clk 0:00:37]}  Kg8 {[%clk 0:00:01]} 47. Kf4 {[%clk 0:00:37]}  b4 {[%clk 0:00:01]} 48. Kf5 {[%clk 0:00:37]} 1-0


[Site "https://www.chess.com"]

[Event "Titled Tuesday Blitz November 15 Early 2022"]
[White "Rangel, Daniel"]
[Black "Barbashin, Igor"]
[WhiteFideId "2124475"]
[BlackFideId "4155718"]
[WhiteElo "2225"]
[BlackElo "2138"]
[Result "1-0"]
[Round "07"]
[TimeControl "180+1"]
[Date "2022.11.16"]
[WhiteClock "0:00:04"]
[BlackClock "0:00:02"]

1. e4 {[%clk 0:03:00]}  d5 {[%clk 0:02:58]} 2. exd5 {[%clk 0:02:59]}  Nf6 {[%clk 0:02:58]} 3. Nf3 {[%clk 0:02:58]}  Nxd5 {[%clk 0:02:57]} 4. Bc4 {[%clk 0:02:57]}  e6 {[%clk 0:02:56]} 5. O-O {[%clk 0:02:56]}  Be7 {[%clk 0:02:55]} 6. Bb3 {[%clk 0:02:54]}  O-O {[%clk 0:02:54]} 7. d4 {[%clk 0:02:54]}  b6 {[%clk 0:02:51]} 8. c4 {[%clk 0:02:52]}  Nf6 {[%clk 0:02:50]} 9. Bf4 {[%clk 0:02:48]}  Bb7 {[%clk 0:02:49]} 10. Ne5 {[%clk 0:02:46]}  c5 {[%clk 0:02:44]} 11. dxc5 {[%clk 0:02:42]}  Bxc5 {[%clk 0:02:37]} 12. Nc3 {[%clk 0:02:39]}  Nc6 {[%clk 0:02:24]} 13. Na4 {[%clk 0:02:10]}  Bd4 {[%clk 0:02:16]} 14. Nxc6 {[%clk 0:02:04]}  Bxc6 {[%clk 0:02:17]} 15. Qc2 {[%clk 0:01:53]}  e5 {[%clk 0:01:59]} 16. Be3 {[%clk 0:01:48]}  Bxe3 {[%clk 0:01:55]} 17. fxe3 {[%clk 0:01:48]}  Ng4 {[%clk 0:01:53]} 18. Qe2 {[%clk 0:01:44]}  Qh4 {[%clk 0:01:37]} 19. h3 {[%clk 0:01:42]}  Nf6 {[%clk 0:01:27]} 20. Nc3 {[%clk 0:01:40]}  Rad8 {[%clk 0:01:09]} 21. Rf5 {[%clk 0:01:32]}  Rfe8 {[%clk 0:01:00]} 22. Raf1 {[%clk 0:01:28]}  Ne4 {[%clk 0:00:44]} 23. Nxe4 {[%clk 0:00:54]}  Bxe4 {[%clk 0:00:44]} 24. Rxf7 {[%clk 0:00:49]}  Bd3 {[%clk 0:00:42]} 25. Qf2 {[%clk 0:00:47]}  Qxf2+ {[%clk 0:00:30]} 26. R1xf2 {[%clk 0:00:48]}  h6 {[%clk 0:00:23]} 27. Rxa7 {[%clk 0:00:42]}  Kh8 {[%clk 0:00:20]} 28. Rff7 {[%clk 0:00:39]}  Rf8 {[%clk 0:00:17]} 29. Rxg7 {[%clk 0:00:36]}  Be4 {[%clk 0:00:15]} 30. Kh2 {[%clk 0:00:27]}  Rd2 {[%clk 0:00:14]} 31. Rad7 {[%clk 0:00:20]}  Re2 {[%clk 0:00:13]} 32. Bd1 {[%clk 0:00:18]}  Rxb2 {[%clk 0:00:11]} 33. Kg1 {[%clk 0:00:12]}  Rff2 {[%clk 0:00:09]} 34. Bh5 {[%clk 0:00:05]}  Rxg2+ {[%clk 0:00:08]} 35. Rxg2 {[%clk 0:00:05]}  Rxg2+ {[%clk 0:00:09]} 36. Kf1 {[%clk 0:00:06]}  Rxa2 {[%clk 0:00:09]} 37. Rd8+ {[%clk 0:00:07]}  Kg7 {[%clk 0:00:08]} 38. Bg4 {[%clk 0:00:07]}  Kf6 {[%clk 0:00:08]} 39. Rd6+ {[%clk 0:00:07]}  Kg5 {[%clk 0:00:08]} 40. Rxb6 {[%clk 0:00:08]}  Kh4 {[%clk 0:00:08]} 41. Rxh6+ {[%clk 0:00:07]}  Kg3 {[%clk 0:00:06]} 42. Rf6 {[%clk 0:00:07]}  Bd3+ {[%clk 0:00:05]} 43. Ke1 {[%clk 0:00:07]}  Bxc4 {[%clk 0:00:05]} 44. Rf3+ {[%clk 0:00:05]}  Kh4 {[%clk 0:00:05]} 45. e4 {[%clk 0:00:05]}  Rb2 {[%clk 0:00:03]} 46. Rc3 {[%clk 0:00:04]}  Bb5 {[%clk 0:00:02]} 47. Kd1 {[%clk 0:00:04]} 1-0


[Site "https://www.chess.com"]

[Event "Titled Tuesday Blitz November 15 Early 2022"]
[White "Rodriguez Fontecha, Marcos"]
[Black "Georg, Heinz"]
[WhiteFideId "2256576"]
[BlackFideId "4607295"]
[WhiteElo "2263"]
[BlackElo "2332"]
[Result "1-0"]
[Round "07"]
[TimeControl "180+1"]
[Date "2022.11.16"]
[WhiteClock "0:00:37"]
[BlackClock "0:00:22"]

1. Nf3 {[%clk 0:03:00]}  f5 {[%clk 0:02:59]} 2. d4 {[%clk 0:03:00]}  Nf6 {[%clk 0:02:59]} 3. g3 {[%clk 0:03:00]}  g6 {[%clk 0:02:59]} 4. Bg2 {[%clk 0:03:01]}  Bg7 {[%clk 0:03:00]} 5. O-O {[%clk 0:03:01]}  O-O {[%clk 0:03:00]} 6. a3 {[%clk 0:03:02]}  d6 {[%clk 0:03:00]} 7. c4 {[%clk 0:03:02]}  Qe8 {[%clk 0:02:58]} 8. Nc3 {[%clk 0:03:02]}  c6 {[%clk 0:02:56]} 9. b4 {[%clk 0:02:59]}  e5 {[%clk 0:02:56]} 10. c5 {[%clk 0:02:58]}  e4 {[%clk 0:02:55]} 11. Ne1 {[%clk 0:02:40]}  d5 {[%clk 0:02:55]} 12. f3 {[%clk 0:02:39]}  exf3 {[%clk 0:02:50]} 13. exf3 {[%clk 0:02:37]}  a5 {[%clk 0:02:25]} 14. b5 {[%clk 0:02:36]}  cxb5 {[%clk 0:02:23]} 15. Nd3 {[%clk 0:02:34]}  Na6 {[%clk 0:01:58]} 16. Re1 {[%clk 0:02:33]}  Qd8 {[%clk 0:01:53]} 17. Nxb5 {[%clk 0:02:31]}  b6 {[%clk 0:01:51]} 18. c6 {[%clk 0:02:25]}  Nc7 {[%clk 0:01:44]} 19. a4 {[%clk 0:02:26]}  Ba6 {[%clk 0:01:43]} 20. Qb3 {[%clk 0:02:22]}  Rf7 {[%clk 0:01:16]} 21. Bf4 {[%clk 0:02:21]}  Ne6 {[%clk 0:01:14]} 22. Be5 {[%clk 0:02:14]}  Re7 {[%clk 0:01:05]} 23. Rac1 {[%clk 0:01:57]}  Rc8 {[%clk 0:01:03]} 24. Nd6 {[%clk 0:01:44]}  Nxd4 {[%clk 0:00:58]} 25. Qc3 {[%clk 0:01:14]}  Rxe5 {[%clk 0:00:53]} 26. Nxc8 {[%clk 0:01:02]}  Ne2+ {[%clk 0:00:43]} 27. Rxe2 {[%clk 0:01:02]}  Rxe2 {[%clk 0:00:43]} 28. Na7 {[%clk 0:00:51]}  Ne4 {[%clk 0:00:42]} 29. c7 {[%clk 0:00:46]}  Qe8 {[%clk 0:00:25]} 30. c8=Q {[%clk 0:00:43]}  Bxc8 {[%clk 0:00:23]} 31. Qxc8 {[%clk 0:00:43]}  Bd4+ {[%clk 0:00:23]} 32. Kh1 {[%clk 0:00:39]}  Nf2+ {[%clk 0:00:23]} 33. Nxf2 {[%clk 0:00:38]}  Re1+ {[%clk 0:00:23]} 34. Rxe1 {[%clk 0:00:38]}  Qxc8 {[%clk 0:00:22]} 35. Nxc8 {[%clk 0:00:39]}  Bxf2 {[%clk 0:00:22]} 36. Re8+ {[%clk 0:00:37]} 1-0


[Site "https://www.chess.com"]

[Event "Titled Tuesday Blitz November 15 Early 2022"]
[White "Ronka, Erik"]
[Black "Vasques, Antonio Pedro Freixial"]
[WhiteFideId "505080"]
[BlackFideId "1908332"]
[WhiteElo "2264"]
[BlackElo "2243"]
[Result "1-0"]
[Round "07"]
[TimeControl "180+1"]
[Date "2022.11.16"]
[WhiteClock "0:00:41"]
[BlackClock "0:00:51"]

1. e4 {[%clk 0:03:00]}  c5 {[%clk 0:02:57]} 2. Nf3 {[%clk 0:03:00]}  Nc6 {[%clk 0:02:57]} 3. d4 {[%clk 0:03:00]}  cxd4 {[%clk 0:02:58]} 4. Nxd4 {[%clk 0:03:01]}  e5 {[%clk 0:02:58]} 5. Nb5 {[%clk 0:03:00]}  d6 {[%clk 0:02:58]} 6. N1c3 {[%clk 0:03:00]}  a6 {[%clk 0:02:59]} 7. Na3 {[%clk 0:03:01]}  b5 {[%clk 0:02:59]} 8. Nd5 {[%clk 0:03:01]}  Nge7 {[%clk 0:03:00]} 9. c4 {[%clk 0:03:02]}  Nxd5 {[%clk 0:02:57]} 10. cxd5 {[%clk 0:02:58]}  Nd4 {[%clk 0:02:57]} 11. Bd3 {[%clk 0:02:57]}  Be7 {[%clk 0:02:58]} 12. Be3 {[%clk 0:02:53]}  O-O {[%clk 0:02:57]} 13. O-O {[%clk 0:02:52]}  Bd7 {[%clk 0:02:51]} 14. f4 {[%clk 0:02:33]}  Bf6 {[%clk 0:02:45]} 15. Bxd4 {[%clk 0:02:32]}  exd4 {[%clk 0:02:44]} 16. Nc2 {[%clk 0:02:32]}  g6 {[%clk 0:02:40]} 17. h3 {[%clk 0:02:30]}  Rc8 {[%clk 0:02:37]} 18. Ne1 {[%clk 0:02:30]}  Re8 {[%clk 0:02:34]} 19. Nf3 {[%clk 0:02:30]}  Qb6 {[%clk 0:02:32]} 20. Kh1 {[%clk 0:02:27]}  Bg7 {[%clk 0:02:31]} 21. Qd2 {[%clk 0:02:25]}  a5 {[%clk 0:02:28]} 22. Rf2 {[%clk 0:02:09]}  Bh6 {[%clk 0:02:07]} 23. Raf1 {[%clk 0:02:02]}  b4 {[%clk 0:01:59]} 24. g4 {[%clk 0:01:13]}  b3 {[%clk 0:01:40]} 25. g5 {[%clk 0:01:07]}  Bg7 {[%clk 0:01:40]} 26. a3 {[%clk 0:01:04]}  Bxh3 {[%clk 0:01:13]} 27. Rg1 {[%clk 0:01:04]}  Rc7 {[%clk 0:01:08]} 28. f5 {[%clk 0:00:45]}  Bg4 {[%clk 0:00:51]} 29. Rxg4 {[%clk 0:00:41]} 1-0


[Site "https://www.chess.com"]

[Event "Titled Tuesday Blitz November 15 Early 2022"]
[White "Rose, Felix"]
[Black "Callejas Rojas, Francisco Miguel"]
[WhiteFideId "5105722"]
[BlackFideId "32072503"]
[WhiteElo "2039"]
[BlackElo "2274"]
[Result "0-1"]
[Round "07"]
[TimeControl "180+1"]
[Date "2022.11.16"]
[WhiteClock "0:00:03"]
[BlackClock "0:00:05"]

1. d4 {[%clk 0:02:59]}  Nf6 {[%clk 0:02:57]} 2. Bf4 {[%clk 0:02:59]}  g6 {[%clk 0:02:56]} 3. Nc3 {[%clk 0:02:59]}  d5 {[%clk 0:02:55]} 4. e3 {[%clk 0:02:58]}  Bg7 {[%clk 0:02:55]} 5. Nb5 {[%clk 0:02:57]}  Na6 {[%clk 0:02:53]} 6. h3 {[%clk 0:02:57]}  O-O {[%clk 0:02:51]} 7. Nf3 {[%clk 0:02:57]}  Ne4 {[%clk 0:02:02]} 8. c4 {[%clk 0:02:48]}  c6 {[%clk 0:01:58]} 9. Nc3 {[%clk 0:02:47]}  Qa5 {[%clk 0:01:38]} 10. Qb3 {[%clk 0:02:01]}  dxc4 {[%clk 0:01:21]} 11. Bxc4 {[%clk 0:01:58]}  b5 {[%clk 0:01:21]} 12. Bd3 {[%clk 0:01:37]}  Be6 {[%clk 0:01:20]} 13. Qd1 {[%clk 0:01:12]}  Nxc3 {[%clk 0:01:16]} 14. Qd2 {[%clk 0:01:11]}  b4 {[%clk 0:00:51]} 15. Bxa6 {[%clk 0:00:58]}  Nd5 {[%clk 0:00:13]} 16. Bb7 {[%clk 0:00:44]}  Nxf4 {[%clk 0:00:12]} 17. exf4 {[%clk 0:00:43]}  Rad8 {[%clk 0:00:10]} 18. Bxc6 {[%clk 0:00:42]}  Qa6 {[%clk 0:00:08]} 19. Be4 {[%clk 0:00:39]}  Bc4 {[%clk 0:00:07]} 20. Qxb4 {[%clk 0:00:32]}  Bxd4 {[%clk 0:00:07]} 21. Bb7 {[%clk 0:00:23]}  Qe6+ {[%clk 0:00:05]} 22. Ne5 {[%clk 0:00:12]}  Bxe5 {[%clk 0:00:05]} 23. f3 {[%clk 0:00:03]}  Bd4+ {[%clk 0:00:04]} 24. Kd2 {[%clk 0:00:02]}  Bc5+ {[%clk 0:00:03]} 25. Kc3 {[%clk 0:00:02]}  Bxb4+ {[%clk 0:00:04]} 26. Kxb4 {[%clk 0:00:03]}  Qb6+ {[%clk 0:00:04]} 27. Kxc4 {[%clk 0:00:03]}  Qxb7 {[%clk 0:00:05]} 28. a4 {[%clk 0:00:03]}  Rd6 {[%clk 0:00:05]} 29. Kc3 {[%clk 0:00:03]}  Rc8# {[%clk 0:00:05]} 0-1


[Site "https://www.chess.com"]

[Event "Titled Tuesday Blitz November 15 Early 2022"]
[White "Samarth, J Rao"]
[Black "Pinheiro, Iung Alicio de O."]
[WhiteFideId "46652370"]
[BlackFideId "2104350"]
[WhiteElo "1564"]
[BlackElo "2283"]
[Result "0-1"]
[Round "07"]
[TimeControl "180+1"]
[Date "2022.11.16"]
[WhiteClock "0:00:01"]
[BlackClock "0:00:13"]

1. c4 {[%clk 0:02:39]}  c5 {[%clk 0:02:58]} 2. e3 {[%clk 0:02:39]}  Nf6 {[%clk 0:02:54]} 3. d4 {[%clk 0:02:38]}  cxd4 {[%clk 0:02:51]} 4. exd4 {[%clk 0:02:39]}  d5 {[%clk 0:02:52]} 5. Nc3 {[%clk 0:02:38]}  Nc6 {[%clk 0:02:50]} 6. Nf3 {[%clk 0:02:36]}  g6 {[%clk 0:02:50]} 7. cxd5 {[%clk 0:02:35]}  Nxd5 {[%clk 0:02:50]} 8. Qb3 {[%clk 0:02:36]}  e6 {[%clk 0:02:50]} 9. Bg5 {[%clk 0:02:33]}  f6 {[%clk 0:02:47]} 10. Nxd5 {[%clk 0:02:30]}  exd5 {[%clk 0:02:41]} 11. Qe3+ {[%clk 0:02:30]}  Kf7 {[%clk 0:02:37]} 12. Bh4 {[%clk 0:02:25]}  Bb4+ {[%clk 0:02:36]} 13. Kd1 {[%clk 0:02:23]}  Bf5 {[%clk 0:02:09]} 14. a3 {[%clk 0:02:20]}  Ba5 {[%clk 0:02:00]} 15. Qb3 {[%clk 0:02:11]}  Bb6 {[%clk 0:01:54]} 16. Bd3 {[%clk 0:01:50]}  Bg4 {[%clk 0:01:45]} 17. Be2 {[%clk 0:01:49]}  Re8 {[%clk 0:01:38]} 18. Re1 {[%clk 0:01:33]}  Qd7 {[%clk 0:01:36]} 19. Rc1 {[%clk 0:01:27]}  Rad8 {[%clk 0:01:30]} 20. Bg3 {[%clk 0:01:26]}  Bxf3 {[%clk 0:01:16]} 21. Bxf3 {[%clk 0:01:16]}  Nxd4 {[%clk 0:01:08]} 22. Rxe8 {[%clk 0:01:15]}  Kxe8 {[%clk 0:01:01]} 23. Qd3 {[%clk 0:00:33]}  Qa4+ {[%clk 0:00:43]} 24. Ke1 {[%clk 0:00:30]}  Nxf3+ {[%clk 0:00:34]} 25. Qxf3 {[%clk 0:00:29]}  Qe4+ {[%clk 0:00:34]} 26. Qxe4+ {[%clk 0:00:28]}  dxe4 {[%clk 0:00:34]} 27. Rc4 {[%clk 0:00:26]}  f5 {[%clk 0:00:34]} 28. Ke2 {[%clk 0:00:25]}  Rd3 {[%clk 0:00:33]} 29. Bc7 {[%clk 0:00:24]}  Rb3 {[%clk 0:00:32]} 30. Be5 {[%clk 0:00:24]}  Kd7 {[%clk 0:00:30]} 31. Bc3 {[%clk 0:00:23]}  Bc7 {[%clk 0:00:24]} 32. f3 {[%clk 0:00:03]}  exf3+ {[%clk 0:00:20]} 33. Kxf3 {[%clk 0:00:04]}  Bxh2 {[%clk 0:00:20]} 34. Rh4 {[%clk 0:00:03]}  Bd6 {[%clk 0:00:18]} 35. Rxh7+ {[%clk 0:00:02]}  Kc6 {[%clk 0:00:14]} 36. Ke2 {[%clk 0:00:02]}  Bxa3 {[%clk 0:00:14]} 37. Rg7 {[%clk 0:00:02]}  Bxb2 {[%clk 0:00:14]} 38. Rxg6+ {[%clk 0:00:03]}  Kd5 {[%clk 0:00:14]} 39. Bd2 {[%clk 0:00:03]}  Be5 {[%clk 0:00:13]} 40. Rg5 {[%clk 0:00:02]}  Ke4 {[%clk 0:00:13]} 41. Kd1 {[%clk 0:00:02]}  Rb1+ {[%clk 0:00:13]} 42. Kc2 {[%clk 0:00:02]}  Rb2+ {[%clk 0:00:13]} 43. Kc1 {[%clk 0:00:01]}  Rxd2 {[%clk 0:00:13]} 0-1


[Site "https://www.chess.com"]

[Event "Titled Tuesday Blitz November 15 Early 2022"]
[White "Sanchez Enriquez, Oscar Gerardo"]
[Black "Zaichenko, Daria"]
[WhiteFideId "5106311"]
[BlackFideId "4197453"]
[WhiteElo "2375"]
[BlackElo "2039"]
[Result "1-0"]
[Round "07"]
[TimeControl "180+1"]
[Date "2022.11.16"]
[WhiteClock "0:01:57"]
[BlackClock "0:01:23"]

1. e4 {[%clk 0:03:00]}  c5 {[%clk 0:02:56]} 2. c3 {[%clk 0:02:59]}  d5 {[%clk 0:02:53]} 3. exd5 {[%clk 0:03:00]}  Qxd5 {[%clk 0:02:54]} 4. d4 {[%clk 0:03:01]}  cxd4 {[%clk 0:02:53]} 5. cxd4 {[%clk 0:03:01]}  e6 {[%clk 0:02:50]} 6. Nc3 {[%clk 0:02:59]}  Qd8 {[%clk 0:02:46]} 7. Nf3 {[%clk 0:03:00]}  Nf6 {[%clk 0:02:46]} 8. Bd3 {[%clk 0:03:00]}  Nc6 {[%clk 0:02:46]} 9. O-O {[%clk 0:03:00]}  Be7 {[%clk 0:02:46]} 10. Qe2 {[%clk 0:03:01]}  O-O {[%clk 0:02:45]} 11. Rd1 {[%clk 0:03:01]}  Bd7 {[%clk 0:02:40]} 12. Bg5 {[%clk 0:03:00]}  h6 {[%clk 0:02:39]} 13. Bh4 {[%clk 0:03:00]}  Nd5 {[%clk 0:02:38]} 14. Bg3 {[%clk 0:03:01]}  f5 {[%clk 0:02:31]} 15. Be5 {[%clk 0:02:55]}  Bf6 {[%clk 0:02:28]} 16. Bc4 {[%clk 0:02:48]}  Bxe5 {[%clk 0:02:12]} 17. Nxd5 {[%clk 0:02:33]}  Bd6 {[%clk 0:02:05]} 18. Nc3 {[%clk 0:02:29]}  Qf6 {[%clk 0:02:03]} 19. d5 {[%clk 0:02:25]}  Ne5 {[%clk 0:01:58]} 20. dxe6 {[%clk 0:02:16]}  Rfc8 {[%clk 0:01:33]} 21. Nxe5 {[%clk 0:02:08]}  Qxe5 {[%clk 0:01:31]} 22. exd7+ {[%clk 0:02:03]}  Rxc4 {[%clk 0:01:27]} 23. Qxc4+ {[%clk 0:02:00]}  Kh7 {[%clk 0:01:28]} 24. g3 {[%clk 0:01:57]}  Rd8 {[%clk 0:01:23]} 25. Qd5 {[%clk 0:01:57]} 1-0


[Site "https://www.chess.com"]